fUST/lending_fUST_20251227
["ID","MTS","AMOUNT","RATE_DAILY","PERIOD"]
[399895097,1766829042638,-3496.81,0.00019199,2]
[399895099,1766829042648,-3496.94332544,0.00019199,2]
[399895101,1766829042657,-602.87,0.000192,2]
[399895103,1766829042667,-525.0,0.00019229,2]
[399895105,1766829042681,-3125.68376085,0.00019249,2]
[399895107,1766829042691,-525.0,0.00019251,2]
[399895109,1766829042700,-1041.66666667,0.00019258,2]
[399895111,1766829042710,-1310.49655864,0.00019262,2]
[399895112,1766829042719,-2019.12,0.000193,2]
[399895114,1766829042729,-3115.75855538,0.00019308,7]
[399895116,1766829042739,-1397.87376278,0.00019308,7]
[399895118,1766829042749,-1986.29607906,0.00019308,2]
[399895120,1766829042759,-525.0,0.00019313,2]
[399895122,1766829042774,-525.0,0.00019314,2]
[399895124,1766829042783,-525.0,0.00019337,2]
[399895126,1766829042793,-525.0,0.00019355,2]
[399895128,1766829042803,-525.0,0.00019434,2]
[399895130,1766829042812,-602.87,0.000195,2]
[399895132,1766829042822,-514.84070869,0.00019695,2]
[399895135,1766829042834,-1363.0,0.00019755,2]
[399895137,1766829042843,-633.0,0.00019755,2]
[399895139,1766829042852,-297.439,0.00019755,2]
[399895141,1766829042864,-298.537,0.00019755,2]
[399895144,1766829042880,-626.58768347,0.0001976,2]
[399895146,1766829042890,-600.0,0.00019786,2]
[399895148,1766829042900,-160.24336629,0.000198,14]
[399895150,1766829042909,-602.87,0.000199,2]
[399895152,1766829042919,-1280.40585075,0.0002,2]
[399895154,1766829042929,-150.0,0.0002,2]
[399895156,1766829042938,-255.75975292,0.0002,2]
[399895158,1766829042948,-1547.80509946,0.00020028,2]
[399895160,1766829042959,-2000.0,0.00020091,7]
[399895162,1766829042969,-350.586841,0.00020187,2]
[399895164,1766829042979,-602.87,0.000202,2]
[399895166,1766829042988,-533.88981491,0.00020243,2]
[399895168,1766829042998,-368.24781649,0.00020292,2]
[399895170,1766829043007,-5582.27759899,0.00020342,7]
[399895172,1766829043017,-1267.7898563,0.00020367,2]
[399895174,1766829043027,-3527.6618364,0.00020415,2]
[399895176,1766829043037,-1907.68581267,0.00020415,2]
[399895178,1766829043046,-151.863,0.00020441,2]
[399895180,1766829043056,-184.357,0.00020441,2]
[399895182,1766829043065,-602.87,0.000205,2]
[399895184,1766829043075,-295.40433647,0.00020525,2]
[399895186,1766829043085,-930.3962665,0.00020659,11]
[399895188,1766829043094,-404.6432709,0.00020712,2]
[399895190,1766829043104,-257.53762542,0.00020791,2]
[399895192,1766829043114,-250.0,0.000208,10]
[399895194,1766829043124,-602.87,0.000208,2]
[399895196,1766829043134,-500.0,0.0002088,2]
[399895198,1766829043143,-282.8821536,0.00020895,2]
[399895200,1766829043153,-162.07,0.000209,2]
[399895202,1766829043162,-160.34,0.000209,2]
[399895204,1766829043171,-250.0,0.000209,10]
[399895206,1766829043181,-930.3962665,0.00020977,13]
[399895208,1766829043190,-20110.0,0.00021,2]
[399895209,1766829043200,-2019.12,0.00021,2]
[399895210,1766829043210,-250.0,0.00021,10]
[399895211,1766829043220,-250.0,0.000211,10]
[399895212,1766829043229,-602.87,0.000211,2]
[399895213,1766829043238,-160.0,0.00021108,3]
[399895214,1766829043248,-250.0,0.000212,10]
[399895215,1766829043257,-930.3962665,0.00021295,14]
[399895216,1766829043268,-250.0,0.000213,10]
[399895217,1766829043278,-2000.0,0.0002133,7]
[399895218,1766829043287,-250.0,0.000214,10]
[399895219,1766829043298,-250.0,0.000215,10]
[399895220,1766829043308,-602.87,0.000215,2]
[399895221,1766829043318,-4877.9087594,0.00021592,2]
[399895222,1766829043327,-151.0,0.000216,3]
[399895223,1766829043337,-250.0,0.000216,10]
[399895224,1766829043347,-930.3962665,0.00021612,15]
[399895225,1766829043357,-449.657988,0.000217,10]
[399895226,1766829043366,-720.0,0.00021765,10]
[399895227,1766829043375,-602.87,0.000218,2]
[399895229,1766829043385,-156.67762333,0.00021838,5]
[399895231,1766829043394,-930.3962665,0.0002193,17]
[399895233,1766829043404,-190.22,0.00022,5]
[399895235,1766829043413,-151.0,0.000221,8]
[399895237,1766829043422,-602.87,0.000221,2]
[399895239,1766829043432,-1547.80509946,0.00022244,2]
[399895241,1766829043442,-930.3962665,0.00022248,18]
[399895243,1766829043451,-1243.77,0.000223,7]
[399895245,1766829043461,-160.0,0.00022304,4]
[399895247,1766829043470,-602.87,0.000224,2]
[399895249,1766829043479,-242.08900221,0.00022413,2]
[399895252,1766829043501,-846.31956039,0.00022413,2]
[399895254,1766829043510,-151.0,0.000225,8]
[399895256,1766829043520,-35.03172216,0.000225,2]
[399895264,1766829043584,-168.823344,0.000186,2]
[399895266,1766829043594,-168.823344,0.00018756,2]
[399895268,1766829043604,-168.823344,0.00018756,2]
[399895270,1766829043613,-168.823344,0.00018756,2]
[399895272,1766829043622,-150.0,0.0001882,2]
[399895274,1766829043632,-150.0,0.00019996,2]
[399895276,1766829043641,-11148.55184837,0.000225,2]
[399895288,1766829043751,-3435.90441041,0.000225,2]
[399895464,1766829045493,-746.19568095,0.00017951,2]
[399895466,1766829045503,-168.823344,0.000186,2]
[399895468,1766829045514,-168.823344,0.000186,2]
[399895470,1766829045523,-168.823344,0.000186,2]
[399895472,1766829045532,-168.823344,0.00018756,2]
[399895474,1766829045542,-168.823344,0.00018756,2]
[399895476,1766829045551,-168.823344,0.00018756,2]
[399895478,1766829045560,-168.823344,0.00018756,2]
[399895480,1766829045569,-168.823344,0.00018756,2]
[399895481,1766829045578,-168.823344,0.00018756,2]
[399895483,1766829045587,-168.823344,0.00018756,2]
[399895485,1766829045597,-168.823344,0.00018756,2]
[399895488,1766829045607,-168.823344,0.00018756,2]
[399895491,1766829045616,-168.823344,0.000189,2]
[399895493,1766829045625,-168.823344,0.000189,2]
[399895495,1766829045635,-168.823344,0.000189,2]
[399895497,1766829045644,-168.82333703,0.000189,2]
[399895499,1766829045653,-746.19568091,0.00019239,2]
[399895501,1766829045662,-2577.0200549,0.000225,2]
[399895582,1766829046457,-286.82145078,0.00020526,2]
[399895629,1766829085738,500.0,0.00013273,2]
[399895632,1766829102692,150.0,0.00012917,2]
[399895633,1766829103092,150.0,0.00014092,2]
[399895639,1766829132375,500.0,0.00013273,2]
[399895640,1766829136056,197.61954727,7.961e-05,2]
[399895641,1766829137773,2879.26343833,0.0001439,2]
[399895650,1766829174858,150.0,0.00012283,2]
[399895651,1766829175272,150.0,0.000134,2]
[399895655,1766829187143,500.0,0.00013273,2]
[399895658,1766829197310,500.0,0.00013273,2]
[399895659,1766829200675,500.0,0.00013273,2]
[399895696,1766829246119,150.0,0.00012948,2]
[399895697,1766829246503,150.0,0.00014125,2]
[399895748,1766829315510,150.0,0.00012947,2]
[399895749,1766829315900,150.0,0.00014124,2]
[399895754,1766829356736,165.04287184,0.00014325,2]
[399895758,1766829366588,500.0,0.00013273,2]
[399895759,1766829384118,150.0,0.00014253,2]
[399895761,1766829401190,315.528156,0.00013699,2]
[399895782,1766829453842,150.0,0.00010648,2]
[399895783,1766829454231,150.0,0.00011616,2]
[399895784,1766829454619,150.0,0.00012584,2]
[399895785,1766829455008,150.0,0.00013552,2]
[399895798,1766829521194,150.0,0.00012947,2]
[399895800,1766829521623,150.0,0.00014124,2]
[399895804,1766829546600,500.0,0.00013273,2]
[399895807,1766829587464,150.0,0.00012953,2]
[399895808,1766829587854,150.0,0.00014131,2]
[399895820,1766829723956,500.0,0.00013273,2]
[399895823,1766829725187,500.0,0.00013273,2]
[399895887,1766829781627,197.71830766,7.961e-05,2]
[399895892,1766829785995,999.0,0.00014061,2]
[399895895,1766829787135,500.0,0.00013699,2]
[399895896,1766829787205,154.8977644,0.00014247,2]
[399895968,1766830035222,-174.83516596,0.000144,2]
[399895989,1766830044106,-36.58643746,0.000144,2]
[399895990,1766830044129,-500.0,0.000144,2]
[399895991,1766830044154,-626.0,0.000144,2]
[399895992,1766830044176,-194.54672359,0.000144,2]
[399895993,1766830044196,-207.26351811,0.00014425,2]
[399895994,1766830044216,-300.0,0.00014684,2]
[399895995,1766830044238,-300.0,0.00014685,2]
[399895996,1766830044260,-1200.0,0.00014685,2]
[399895997,1766830044279,-531.69636672,0.00014685,2]
[399895998,1766830044301,-500.0,0.00014685,2]
[399895999,1766830044323,-500.0,0.00014685,2]
[399896000,1766830044345,-500.0,0.00014685,2]
[399896001,1766830044368,-500.0,0.00014685,2]
[399896003,1766830044392,-500.0,0.00014685,2]
[399896004,1766830044413,-500.0,0.00014685,2]
[399896005,1766830044435,-500.0,0.00014685,2]
[399896006,1766830044456,-147.89721441,0.00014685,2]
[399896042,1766830079311,184.5023452,7.961e-05,2]
[399896043,1766830079979,184.5023452,0.00013657,2]
[399896049,1766830168240,-1410.9,0.000144,2]
[399896050,1766830168263,-210.48392134,0.00014543,2]
[399896051,1766830168490,-300.0,0.00014683,2]
[399896052,1766830168511,-304.23801095,0.00014684,2]
[399896053,1766830168534,-500.0,0.00014684,2]
[399896054,1766830168555,-193.49617746,0.00014684,2]
[399896055,1766830168578,-500.0,0.00014684,2]
[399896056,1766830168600,-550.31172523,0.00014684,2]
[399896057,1766830168624,-500.0,0.00014684,2]
[399896058,1766830168647,-500.0,0.00014684,2]
[399896059,1766830168670,-500.0,0.00014684,2]
[399896060,1766830168692,-438.24786327,0.00014684,2]
[399896061,1766830168713,-390.62176684,0.00014684,2]
[399896062,1766830168734,-500.0,0.00014684,2]
[399896063,1766830168756,-500.0,0.00014684,2]
[399896064,1766830168776,-590.3561518,0.00014684,2]
[399896065,1766830168796,-500.0,0.00014684,2]
[399896066,1766830168818,-500.0,0.00014684,2]
[399896067,1766830168839,-500.0,0.00014684,2]
[399896068,1766830168860,-500.0,0.00014684,2]
[399896069,1766830168881,-500.0,0.00014684,2]
[399896070,1766830168902,-500.0,0.00014684,2]
[399896071,1766830168924,-500.0,0.00014684,2]
[399896072,1766830168945,-500.0,0.00014684,2]
[399896073,1766830168966,-500.0,0.00014684,2]
[399896074,1766830168988,-500.0,0.00014684,2]
[399896075,1766830169008,-50000.0,0.00014685,2]
[399896076,1766830169032,-300.0,0.00014687,2]
[399896077,1766830169057,-300.0,0.00014687,2]
[399896078,1766830169080,-300.0,0.00014687,2]
[399896079,1766830169102,-300.0,0.00014687,2]
[399896080,1766830169124,-300.0,0.00014687,2]
[399896081,1766830169146,-300.0,0.00014687,2]
[399896082,1766830169168,-300.0,0.00014687,2]
[399896083,1766830169194,-300.0,0.00014687,2]
[399896084,1766830169215,-300.0,0.00014687,2]
[399896085,1766830169237,-300.0,0.00014687,2]
[399896086,1766830169261,-300.0,0.00014687,2]
[399896087,1766830169284,-300.0,0.00014687,2]
[399896088,1766830169305,-300.0,0.00014687,2]
[399896089,1766830169326,-300.0,0.00014687,2]
[399896090,1766830169347,-300.0,0.00014687,2]
[399896091,1766830169368,-1410.9,0.000147,2]
[399896092,1766830169389,-1410.9,0.00015,2]
[399896093,1766830169410,-162.4628667,0.00015172,2]
[399896094,1766830169432,-553.9486465,0.00015299,2]
[399896095,1766830171098,-46.0513535,0.00015299,2]
[399896096,1766830171118,-1410.9,0.000154,2]
[399896097,1766830171138,-407.23547975,0.00015646,2]
[399896098,1766830171159,-1410.9,0.000157,2]
[399896099,1766830171181,-1410.9,0.00016,2]
[399896100,1766830171202,-287.0,0.00016075,2]
[399896101,1766830171223,-1410.9,0.000163,2]
[399896102,1766830171244,-248.37102718,0.00016543,2]
[399896103,1766830171264,-1410.9,0.000166,2]
[399896104,1766830171285,-195.65674314,0.00016829,2]
[399896166,1766830232357,-19.42612955,0.000144,2]
[399896283,1766830238436,-498.82387045,0.000144,2]
[399896284,1766830238446,-518.25,0.000147,2]
[399896285,1766830238456,-518.25,0.00015,2]
[399896287,1766830238466,-518.25,0.000154,2]
[399896288,1766830238475,-518.25,0.000157,2]
[399896289,1766830238485,-518.25,0.00016,2]
[399896291,1766830238494,-518.25,0.000163,2]
[399896292,1766830238504,-518.25,0.000166,2]
[399896293,1766830238514,-524.34325686,0.00016829,2]
[399896294,1766830238525,-666.0,0.00016829,2]
[399896295,1766830238535,-152.2058782,0.00016829,2]
[399896297,1766830238547,-518.25,0.00017,2]
[399896298,1766830238557,-518.25,0.000173,2]
[399896299,1766830238567,-518.25,0.000176,2]
[399896300,1766830238576,-306.08885044,0.00017761,2]
[399896301,1766830238585,-518.25,0.000179,2]
[399896303,1766830238595,-518.25,0.000182,2]
[399896304,1766830238605,-390.35311839,0.00018299,2]
[399896305,1766830238614,-2230.315306,0.00018453,2]
[399896306,1766830238623,-864.0,0.00018512,2]
[399896307,1766830238633,-286.25813302,0.00018543,2]
[399896308,1766830238642,-518.25,0.000186,2]
[399896309,1766830238651,-197.91602597,0.00018745,2]
[399896311,1766830238667,-500.0,0.00018821,2]
[399896312,1766830238677,-232.26179464,0.00018821,2]
[399896313,1766830238687,-13202.23521054,0.00018822,2]
[399896314,1766830238697,-300.0,0.00018822,2]
[399896316,1766830238707,-300.0,0.00018822,2]
[399896317,1766830238716,-300.0,0.00018822,2]
[399896318,1766830238739,-300.0,0.00018822,2]
[399896319,1766830238750,-300.0,0.00018822,2]
[399896321,1766830238760,-300.0,0.00018822,2]
[399896322,1766830238770,-300.0,0.00018822,2]
[399896323,1766830238779,-300.0,0.00018822,2]
[399896324,1766830238789,-300.0,0.00018822,2]
[399896326,1766830238799,-300.0,0.00018822,2]
[399896327,1766830238809,-300.0,0.00018822,2]
[399896328,1766830238819,-300.0,0.00018822,2]
[399896329,1766830238829,-300.0,0.00018822,2]
[399896330,1766830238838,-300.0,0.00018822,2]
[399896332,1766830238849,-300.0,0.00018822,2]
[399896333,1766830238859,-182.38023898,0.00018832,2]
[399896334,1766830238870,-518.25,0.000189,2]
[399896335,1766830238881,-348.86254383,0.00019001,2]
[399896337,1766830238891,-518.25,0.000192,2]
[399896338,1766830238901,-500.0,0.00019349,2]
[399896339,1766830238911,-212.96660767,0.00019349,2]
[399896340,1766830238921,-500.0,0.00019349,2]
[399896342,1766830238931,-500.0,0.00019349,2]
[399896343,1766830238941,-635.21820766,0.00019349,2]
[399896344,1766830238951,-10000.0,0.0001935,2]
[399896345,1766830238961,-184.68684755,0.00019353,2]
[399896347,1766830238971,-390.35311839,0.00019449,2]
[399896348,1766830238982,-518.25,0.000195,2]
[399896349,1766830238991,-340.91554237,0.00019678,2]
[399896350,1766830239002,-518.25,0.000199,2]
[399896352,1766830239011,-150.0,0.0002,2]
[399896354,1766830239021,-151.15,0.00020129,2]
[399896356,1766830239031,-315.528156,0.00020187,2]
[399896358,1766830239042,-518.25,0.000202,2]
[399896360,1766830239051,-1000.0,0.00020211,5]
[399896362,1766830239061,-1000.0,0.00020363,2]
[399896365,1766830239071,-518.25,0.000205,2]
[399896367,1766830239081,-324.14523886,0.00020543,2]
[399896369,1766830239091,-390.35311839,0.000206,2]
[399896371,1766830239100,-347.00768538,0.00020637,2]
[399896373,1766830239110,-250.0,0.000208,10]
[399896375,1766830239121,-518.25,0.000208,2]
[399896377,1766830239132,-400.0,0.000209,10]
[399896379,1766830239142,-518.25,0.000211,2]
[399896381,1766830239152,-613.64797627,0.00021342,2]
[399896383,1766830239161,-518.25,0.000215,2]
[399896384,1766830239171,-390.35311839,0.0002175,2]
[399896386,1766830239181,-393.8367724,0.000218,2]
[399896786,1766830244884,-416.0,0.00019722,2]
[399896788,1766830244894,-124.4132276,0.000218,2]
[399896813,1766830245143,-259.5867724,0.0002205,2]
[399896845,1766830245733,-821.66361065,0.0002205,2]
[399896847,1766830245743,-518.25,0.000221,2]
[399896850,1766830245754,-2217.59943182,0.00022244,2]
[399896852,1766830245763,-1000.0,0.00022399,10]
[399896854,1766830245773,-244.0,0.00022399,10]
[399896856,1766830245782,-518.25,0.000224,2]
[399896858,1766830245792,-604.53196416,0.000225,2]
[399896860,1766830245801,-362.0323447,0.00022543,2]
[399896862,1766830245811,-518.25,0.000227,2]
[399896864,1766830245821,-416.0,0.00022722,2]
[399896866,1766830245830,-150.0,0.00022755,2]
[399896869,1766830245852,-150.0,0.00022755,2]
[399896871,1766830245865,-390.35311839,0.000229,2]
[399896873,1766830245875,-150.0,0.00023,2]
[399896876,1766830245886,-1000.0,0.00023,23]
[399896878,1766830245896,-1119.4,0.00023,7]
[399896880,1766830245906,-1545.12484188,0.00023,2]
[399898143,1766830328336,210.47499975,7.961e-05,2]
[399898144,1766830352528,150.0,0.00013785,2]
[399898145,1766830419272,150.0,0.00012239,2]
[399898146,1766830419658,150.0,0.00013351,2]
[399898147,1766830484957,150.0,0.00012249,2]
[399898182,1766830729803,547.68973725,0.0001439,2]
[399898214,1766830944637,182.0,0.00022262,120]
[399898218,1766830982313,203.76837982,7.961e-05,2]
[399898219,1766830982926,203.76837982,0.00013755,2]
[399898224,1766831103366,500.0,0.00013699,2]
[399898225,1766831103433,1000.52703113,0.00014247,2]
[399898228,1766831132126,-480.23347937,0.000144,2]
[399898229,1766831140123,-145.76652063,0.000144,2]
[399898230,1766831140146,-174.85752362,0.000144,2]
[399898232,1766831161260,10000.01,0.00014339,2]
[399898233,1766831161290,806.9648904,0.00014339,2]
[399898237,1766831180811,5000.0,0.0001439,2]
[399898240,1766831187294,150.0,0.00013204,2]
[399898243,1766831230214,-150.0,0.00014404,2]
[399898244,1766831230237,-220.74373283,0.00014475,2]
[399898245,1766831230260,-212.91274449,0.00015308,2]
[399898246,1766831230283,-300.0,0.00015406,2]
[399898247,1766831230305,-484.25650225,0.00015407,2]
[399898248,1766831230329,-500.0,0.00015407,2]
[399898249,1766831230351,-548.75365494,0.00015407,2]
[399898250,1766831230659,-500.0,0.00015407,2]
[399898251,1766831230681,-450.70595128,0.00015407,2]
[399898252,1766831230707,-500.0,0.00015407,2]
[399898253,1766831230729,-530.0,0.00015407,2]
[399898254,1766831230759,-500.0,0.00015407,2]
[399898255,1766831230782,-500.0,0.00015407,2]
[399898256,1766831230804,-500.0,0.00015407,2]
[399898257,1766831230826,-500.0,0.00015407,2]
[399898258,1766831230848,-362.06759034,0.00015407,2]
[399898259,1766831230870,-500.0,0.00015407,2]
[399898260,1766831230891,-500.0,0.00015407,2]
[399898261,1766831230913,-500.0,0.00015407,2]
[399898262,1766831230935,-500.0,0.00015407,2]
[399898263,1766831230956,-500.0,0.00015407,2]
[399898264,1766831230976,-650.0,0.00015407,2]
[399898265,1766831230999,-500.0,0.00015407,2]
[399898266,1766831231021,-500.0,0.00015407,2]
[399898267,1766831231050,-300.0,0.00015407,2]
[399898268,1766831231070,-300.0,0.00015407,2]
[399898269,1766831231090,-1200.0,0.00015407,2]
[399898270,1766831231110,-300.0,0.00015407,2]
[399898271,1766831231131,-231.01563326,0.00015407,2]
[399898274,1766831259028,150.0,0.00013122,2]
[399898275,1766831259944,150.0,0.00014315,2]
[399898276,1766831278646,237.72821526,0.000141,2]
[399898277,1766831294936,2112.88361127,0.0001,2]
[399898278,1766831310945,99223.05062084,0.00012,2]
[399898283,1766831319463,8053.37593329,0.0001,2]
[399898284,1766831320019,2915.92283081,0.0001,2]
[399898285,1766831330461,150.0,0.00012143,2]
[399898286,1766831330908,150.0,0.00013247,2]
[399898287,1766831331307,150.0,0.0001435,2]
[399898295,1766831352098,-300.0,0.00015407,2]
[399898296,1766831352120,-2621.25620892,0.00015408,2]
[399898298,1766831364372,876.3,0.000144,2]
[399898299,1766831364770,876.3,0.000147,2]
[399898306,1766831376698,160.0,0.00030137,120]
[399898309,1766831391339,160.0,0.00030137,120]
[399898310,1766831399414,150.0,0.00012135,2]
[399898311,1766831399811,150.0,0.00013239,2]
[399898312,1766831400471,150.0,0.00014342,2]
[399898313,1766831407297,181.0,0.00030137,120]
[399898314,1766831407956,568.9,0.00030137,120]
[399898315,1766831423715,276.93,0.000144,2]
[399898316,1766831424082,276.93,0.000147,2]
[399898341,1766831432550,-636.0,0.00015,2]
[399898343,1766831432561,-158.58174694,0.00015,2]
[399898469,1766831438762,-118.34825306,0.00015,2]
[399898471,1766831438774,-212.91274448,0.00015312,2]
[399898473,1766831438783,-145.06554282,0.000154,2]
[399898475,1766831439123,-131.86445718,0.000154,2]
[399898476,1766831439134,-606.0,0.0001541,2]
[399898477,1766831439144,-429.11862115,0.0001541,2]
[399898478,1766831439154,-170.0,0.0001541,2]
[399898479,1766831439164,-350.0,0.0001541,2]
[399898480,1766831439174,-250.97267025,0.00015411,2]
[399898481,1766831439183,-500.0,0.00015411,2]
[399898482,1766831439193,-500.0,0.00015411,2]
[399898483,1766831439202,-500.0,0.00015411,2]
[399898484,1766831439212,-500.0,0.00015411,2]
[399898485,1766831439223,-500.0,0.00015411,2]
[399898486,1766831439233,-117.31827246,0.00015411,2]
[399898568,1766831470411,150.0,0.00013588,2]
[399898569,1766831470877,150.0,0.00014823,2]
[399898570,1766831480506,500.0,0.00013273,2]
[399898571,1766831482722,821.55,0.000144,2]
[399898572,1766831483088,500.0,0.00013273,2]
[399898573,1766831483116,821.55,0.000147,2]
[399898574,1766831484082,500.0,0.00013273,2]
[399898575,1766831511994,500.0,0.00022,120]
[399898576,1766831512505,554.09,0.00022,120]
[399898577,1766831526650,500.0,0.00013273,2]
[399898578,1766831527008,500.0,0.00013273,2]
[399898585,1766831532912,500.0,0.00013273,2]
[399898595,1766831542970,287.64,0.000144,2]
[399898596,1766831542998,150.0,0.00013713,2]
[399898597,1766831543323,287.64,0.000147,2]
[399898608,1766831568620,500.0,0.00030134,120]
[399898609,1766831568844,500.0,0.00030134,120]
[399898610,1766831569080,413.95663107,0.00030134,120]
[399898624,1766831612744,150.0,0.00013485,2]
[399898635,1766831681710,150.0,0.00012852,2]
[399898636,1766831682246,150.0,0.0001402,2]
[399898638,1766831683053,500.0,0.00030134,120]
[399898639,1766831683298,500.0,0.00030134,120]
[399898640,1766831683528,500.0,0.00030134,120]
[399898641,1766831683762,500.0,0.00030134,120]
[399898642,1766831683997,500.0,0.00030134,120]
[399898643,1766831684225,502.49845359,0.00030134,120]
[399898648,1766831695102,24912.2097218,0.00014121,2]
[399898652,1766831704001,500.0,0.00013273,2]
[399898653,1766831704114,500.0,0.00013273,2]
[399898654,1766831706982,500.0,0.00013273,2]
[399898675,1766831750470,150.0,0.00010612,2]
[399898676,1766831750792,150.0,0.00011577,2]
[399898677,1766831751188,150.0,0.00012542,2]
[399898680,1766831751603,150.0,0.00013507,2]
[399898683,1766831766894,4463.06830411,0.0001439,2]
[399898818,1766832070142,150.0,9.544e-05,2]
[399898822,1766832077347,283.97534,0.00013699,2]
[399898845,1766832137722,203.5469681,0.00014035,2]
[399898852,1766832297320,7580.7518536,0.00014023,2]
[399898853,1766832331128,-626.0,0.000144,2]
[399898854,1766832331150,-286.68,0.000144,2]
[399898855,1766832331172,-234.40248719,0.00014402,2]
[399898856,1766832331194,-186.78649589,0.00014407,2]
[399898857,1766832341121,-238.22022144,0.00014401,2]
[399898858,1766832341142,-113.21350411,0.00014407,2]
[399898859,1766832341176,-1103.03148579,0.00014407,2]
[399898878,1766832429146,-96.96851421,0.00014407,2]
[399898879,1766832429169,-607.18016759,0.00014408,2]
[399898880,1766832447077,-280.95,0.000144,2]
[399898881,1766832447107,-1371.17843149,0.00014408,2]
[399898882,1766832449954,-3304.25686298,0.00014408,2]
[399898883,1766832456053,-3391.49627404,0.00014408,2]
[399898884,1766832456082,-300.0,0.00014699,2]
[399898885,1766832517556,150.0,9.503e-05,2]
[399898886,1766832517946,150.0,0.00010367,2]
[399898887,1766832518357,150.0,0.00011231,2]
[399898888,1766832518771,150.0,0.00012095,2]
[399898889,1766832545106,-2861.89647763,0.00014982,2]
[399898890,1766832561104,-1671.91993572,0.00014982,2]
[399898891,1766832564523,275.33,0.000144,2]
[399898892,1766832569079,-275.33,0.000147,2]
[399898905,1766832624638,926.01,0.000144,2]
[399898906,1766832625001,926.01,0.000147,2]
[399898923,1766832631726,-1759.54239625,0.00014982,2]
[399898925,1766832631737,-635.0,0.00014982,2]
[399898926,1766832631747,-335.0,0.00014997,2]
[399898927,1766832631758,-500.0,0.00014998,2]
[399898928,1766832631768,-500.0,0.00014998,2]
[399898929,1766832631778,-500.0,0.00014998,2]
[399898930,1766832631788,-500.0,0.00014998,2]
[399898931,1766832631804,-300.63044983,0.00014998,2]
[399898932,1766832631816,-500.0,0.00014998,2]
[399898933,1766832631826,-500.0,0.00014998,2]
[399898935,1766832631837,-500.0,0.00014998,2]
[399898936,1766832631847,-500.0,0.00014998,2]
[399898938,1766832631857,-537.38482957,0.00014998,2]
[399898940,1766832631868,-500.0,0.00014998,2]
[399898942,1766832631879,-500.0,0.00014998,2]
[399898944,1766832631889,-500.0,0.00014998,2]
[399898946,1766832631901,-500.0,0.00014998,2]
[399898948,1766832631911,-299.69870928,0.00014998,2]
[399899131,1766832637699,-4240.27146611,0.00014998,2]
[399899132,1766832637754,-2044.97081546,0.00014998,2]
[399899133,1766832637767,-8747.6,0.00014998,2]
[399899142,1766832639900,-9187.66470517,0.00014998,2]
[399899143,1766832639910,-926.01,0.00015,2]
[399899144,1766832639920,-500.0,0.00015102,2]
[399899145,1766832639930,-500.0,0.00015102,2]
[399899146,1766832639941,-500.0,0.00015102,2]
[399899147,1766832639951,-232.94976755,0.00015102,2]